fUSD/lending_fUSD_20240708
["ID","MTS","AMOUNT","RATE_DAILY","PERIOD"]
[331514998,1720445356650,-1237.8,0.00054794,120]
[331514999,1720445356761,-458.56712625,0.00054794,120]
[331515000,1720445356862,-4880.04,0.00054794,120]
[331515001,1720445356963,-836.04,0.00054794,120]
[331515002,1720445357066,-2472.65,0.00054794,120]
[331515003,1720445357170,-1021.84,0.00054794,120]
[331515004,1720445357271,-550.11,0.00054794,120]
[331515005,1720445357373,-500.0,0.00054794,120]
[331515006,1720445357475,-1033.51,0.00054794,120]
[331515007,1720445357576,-820.16,0.00054794,120]
[331515008,1720445357677,-1695.51,0.00054794,120]
[331515009,1720445357779,-511.6,0.00054794,120]
[331515010,1720445357882,-3132.94,0.00054794,120]
[331515011,1720445357992,-1913.66,0.00054794,120]
[331515012,1720445358097,-4157.78,0.00054794,120]
[331515013,1720445358212,-652.08,0.00054794,120]
[331515014,1720445358322,-1698.07,0.00054794,120]
[331515015,1720445358431,-637.31,0.00054794,120]
[331515016,1720445358538,-572.94,0.00054794,120]
[331515017,1720445358648,-3335.79,0.00054794,120]
[331515018,1720445358754,-1910.14,0.00054794,120]
[331515019,1720445358860,-2108.8,0.00054794,120]
[331515020,1720445358966,-694.53,0.00054794,120]
[331515021,1720445359072,-1154.16,0.00054794,120]
[331515022,1720445359181,-1564.34,0.00054794,120]
[331515023,1720445359291,-2059.4,0.00054794,120]
[331515024,1720445359397,-3033.38,0.00054794,120]
[331515025,1720445359505,-989.58,0.00054794,120]
[331515026,1720445359610,-2399.84,0.00054794,120]
[331515027,1720445359715,-500.0,0.00054794,120]
[331515028,1720445359821,-1672.29,0.00054794,120]
[331515029,1720445359926,-1604.31,0.00054794,120]
[331515030,1720445360031,-500.0,0.00054794,120]
[331515031,1720445360132,-2417.35,0.00054794,120]
[331515032,1720445360236,-1416.43,0.00054794,120]
[331515033,1720445360343,-691.6,0.00054794,120]
[331515034,1720445360452,-972.54,0.00054794,120]
[331515035,1720445360562,-1198.2,0.00054794,120]
[331515036,1720445360668,-992.98,0.00054794,120]
[331515037,1720445360773,-542.92,0.00054794,120]
[331515038,1720445360876,-1035.8,0.00054794,120]
[331515039,1720445360980,-3821.85,0.00054794,120]
[331515040,1720445361086,-971.56,0.00054794,120]
[331515041,1720445361192,-587.73,0.00054794,120]
[331515042,1720445361304,-1317.09,0.00054794,120]
[331515043,1720445361418,-1389.08,0.00054794,120]
[331515044,1720445361531,-867.82,0.00054794,120]
[331515045,1720445361639,-1639.49,0.00054794,120]
[331515046,1720445361744,-515.13517654,0.00054794,120]
[331515047,1720445361844,-615.39,0.00054794,120]
[331515048,1720445361942,-2430.97,0.00054794,120]
[331515049,1720445362040,-500.0,0.00054794,120]
[331515050,1720445362140,-500.0,0.00054794,120]
[331515051,1720445362240,-2066.55,0.00054794,120]
[331515052,1720445362342,-921.41,0.00054794,120]
[331515053,1720445362440,-548.85,0.00054794,120]
[331515054,1720445362544,-1045.8,0.00054794,120]
[331515055,1720445362865,-2785.91,0.00054794,120]
[331515056,1720445362967,-3346.99,0.00054794,120]
[331515057,1720445363068,-613.69,0.00054794,120]
[331515058,1720445363178,-2884.68,0.00054794,120]
[331515059,1720445363290,-1223.29,0.00054794,120]
[331515060,1720445363398,-521.67,0.00054794,120]
[331515061,1720445363500,-1430.22,0.00054794,120]
[331515062,1720445363607,-611.61,0.00054794,120]
[331515063,1720445363715,-1451.36,0.00054794,120]
[331515064,1720445363818,-729.84,0.00054794,120]
[331515065,1720445363922,-919.43,0.00054794,120]
[331515066,1720445364027,-1252.38,0.00054794,120]
[331515067,1720445364134,-902.66,0.00054794,120]
[331515068,1720445364238,-1130.53,0.00054794,120]
[331515069,1720445364347,-1710.79,0.00054794,120]
[331515070,1720445364453,-1387.34,0.00054794,120]
[331515071,1720445364558,-558.45,0.00054794,120]
[331515072,1720445364668,-595.41,0.00054794,120]
[331515073,1720445364780,-801.29,0.00054794,120]
[331515074,1720445364885,-681.95,0.00054794,120]
[331515075,1720445364992,-647.19,0.00054794,120]
[331515076,1720445365098,-500.0,0.00054794,120]
[331515077,1720445365205,-920.91,0.00054794,120]
[331515078,1720445365312,-809.57,0.00054794,120]
[331515079,1720445365422,-866.07,0.00054794,120]
[331515080,1720445365535,-508.51,0.00054794,120]
[331515081,1720445365644,-1342.46,0.00054794,120]
[331515082,1720445365755,-669.08,0.00054794,120]
[331515083,1720445365865,-924.87,0.00054794,120]
[331515084,1720445365973,-1526.59,0.00054794,120]
[331515085,1720445366082,-2651.63,0.00054794,120]
[331515086,1720445366188,-500.0,0.00054794,120]
[331515087,1720445366294,-2744.63,0.00054794,120]
[331515088,1720445366411,-2267.0,0.00054794,120]
[331515089,1720445366525,-574.0,0.00054794,120]
[331515090,1720445366639,-775.01,0.00054794,120]
[331515091,1720445366754,-1695.04,0.00054794,120]
[331515092,1720445366857,-500.0,0.00054794,120]
[331515093,1720445366962,-1245.56,0.00054794,120]
[331515094,1720445367063,-785.15,0.00054794,120]
[331515095,1720445367165,-1245.98,0.00054794,120]
[331515096,1720445367269,-1155.34,0.00054794,120]
[331515097,1720445367374,-555.03,0.00054794,120]
[331515098,1720445367475,-803.39,0.00054794,120]
[331515099,1720445367579,-1305.54,0.00054794,120]
[331515100,1720445367681,-949.65,0.00054794,120]
[331515101,1720445367788,-500.0,0.00054794,120]
[331515102,1720445367890,-1347.23,0.00054794,120]
[331515103,1720445367993,-568.39,0.00054794,120]
[331515104,1720445368098,-784.35,0.00054794,120]
[331515105,1720445368208,-796.74,0.00054794,120]
[331515106,1720445368318,-838.64,0.00054794,120]
[331515107,1720445368424,-739.18,0.00054794,120]
[331515108,1720445368531,-995.21,0.00054794,120]
[331515109,1720445368638,-1155.36,0.00054794,120]
[331515110,1720445368743,-751.81,0.00054794,120]
[331515111,1720445368850,-1142.72,0.00054794,120]
[331515112,1720445368964,-2126.32,0.00054794,120]
[331515113,1720445369068,-1163.78,0.00054794,120]
[331515114,1720445369171,-743.53,0.00054794,120]
[331515115,1720445369276,-934.66,0.00054794,120]
[331515116,1720445369384,-995.22,0.00054794,120]
[331515117,1720445369491,-784.36,0.00054794,120]
[331515118,1720445369593,-1579.18,0.00054794,120]
[331515119,1720445369698,-500.0,0.00054794,120]
[331515120,1720445369806,-1658.26,0.00054794,120]
[331515121,1720445369916,-500.0,0.00054794,120]
[331515122,1720445370020,-580.63,0.00054794,120]
[331515123,1720445370125,-693.77,0.00054794,120]
[331515124,1720445370231,-633.12,0.00054794,120]
[331515125,1720445370337,-1079.99,0.00054794,120]
[331515126,1720445370442,-510.79,0.00054794,120]
[331515127,1720445370549,-439.85065415,0.00054794,120]
[331515128,1720445370661,-534.95,0.00054794,120]
[331515129,1720445370771,-652.14,0.00054794,120]
[331515130,1720445370878,-2055.98,0.00054794,120]
[331515131,1720445370983,-808.16,0.00054794,120]
[331515132,1720445371088,-837.72,0.00054794,120]
[331515133,1720445371197,-974.55,0.00054794,120]
[331515134,1720445371310,-668.71,0.00054794,120]
[331515135,1720445371423,-918.92,0.00054794,120]
[331515136,1720445371534,-733.46,0.00054794,120]
[331515137,1720445371636,-777.5,0.00054794,120]
[331515138,1720445371736,-843.38,0.00054794,120]
[331515139,1720445371838,-852.37,0.00054794,120]
[331515140,1720445371937,-1186.97,0.00054794,120]
[331515141,1720445372034,-1241.83,0.00054794,120]
[331515142,1720445372129,-807.64,0.00054794,120]
[331515143,1720445372227,-803.38,0.00054794,120]
[331515144,1720445372325,-1355.78,0.00054794,120]
[331515145,1720445372419,-657.3,0.00054794,120]
[331515146,1720445372511,-500.0,0.00054794,120]
[331515147,1720445372612,-500.0,0.00054794,120]
[331515148,1720445372716,-500.0,0.00054794,120]
[331515149,1720445372822,-500.0,0.00054794,120]
[331515150,1720445372924,-525.31,0.00054794,120]
[331515151,1720445373027,-682.0,0.00054794,120]
[331515152,1720445373134,-1095.38,0.00054794,120]
[331515153,1720445373246,-1081.98,0.00054794,120]
[331515154,1720445373356,-712.75,0.00054794,120]
[331515155,1720445373467,-766.48,0.00054794,120]
[331515156,1720445373575,-887.36,0.00054794,120]
[331515157,1720445373677,-989.73,0.00054794,120]
[331515158,1720445373779,-568.6,0.00054794,120]
[331515159,1720445374074,-665.12,0.00054794,120]
[331515160,1720445374174,-785.44,0.00054794,120]
[331515161,1720445374277,-2486.56,0.00054794,120]
[331515162,1720445374379,-891.8,0.00054794,120]
[331515163,1720445374483,-608.44,0.00054794,120]
[331515164,1720445374582,-705.57,0.00054794,120]
[331515165,1720445374683,-502.79,0.00054794,120]
[331515166,1720445374785,-384.73,0.00054794,120]
[331515167,1720445374886,-605.18,0.00054794,120]
[331515168,1720445374985,-232.75894675,0.00054794,120]
[331515169,1720445375086,-344.54587548,0.00054794,120]
[331515170,1720445375188,-500.0,0.00054794,120]
[331515171,1720445375290,-534.72,0.00054794,120]
[331515172,1720445375390,-712.81,0.00054794,120]
[331515173,1720445375490,-1760.36,0.00054794,120]
[331515174,1720445375590,-800.08,0.00054794,120]
[331515175,1720445375691,-894.69,0.00054794,120]
[331515176,1720445375790,-723.54,0.00054794,120]
[331515177,1720445375893,-530.59,0.00054794,120]
[331515178,1720445375995,-839.95,0.00054794,120]
[331515179,1720445376098,-511.1,0.00054794,120]
[331515180,1720445376199,-760.52,0.00054794,120]
[331515181,1720445376309,-866.49,0.00054794,120]
[331515182,1720445376418,-500.0,0.00054794,120]
[331515183,1720445376526,-893.31,0.00054794,120]
[331515184,1720445376633,-500.0,0.00054794,120]
[331515185,1720445376734,-500.0,0.00054794,120]
[331515186,1720445376828,-1290.88,0.00054794,120]
[331515187,1720445376927,-585.61,0.00054794,120]
[331515188,1720445377026,-574.25,0.00054794,120]
[331515189,1720445377125,-514.68697555,0.00054794,120]
[331515190,1720445377221,-891.99,0.00054794,120]
[331515191,1720445377316,-518.21,0.00054794,120]
[331515192,1720445377414,-500.0,0.00054794,120]
[331515193,1720445377510,-973.06,0.00054794,120]
[331515194,1720445377604,-1101.05,0.00054794,120]
[331515195,1720445377698,-1143.52,0.00054794,120]
[331515196,1720445377795,-589.06,0.00054794,120]
[331515197,1720445377887,-729.17,0.00054794,120]
[331515198,1720445377982,-765.16,0.00054794,120]
[331515199,1720445378078,-538.46,0.00054794,120]
[331515200,1720445378181,-338.67433451,0.00054794,120]
[331515201,1720445378285,-577.54,0.00054794,120]
[331515202,1720445378385,-987.37,0.00054794,120]
[331515203,1720445378482,-707.5,0.00054794,120]
[331515204,1720445378577,-943.37,0.00054794,120]
[331515205,1720445378669,-584.78,0.00054794,120]
[331515206,1720445378763,-558.55,0.00054794,120]
[331515207,1720445378859,-718.31,0.00054794,120]
[331515208,1720445378954,-511.83,0.00054794,120]
[331515209,1720445379051,-588.46,0.00054794,120]
[331515210,1720445379153,-725.12,0.00054794,120]
[331515211,1720445379259,-1169.96,0.00054794,120]
[331515212,1720445379365,-510.12,0.00054794,120]
[331515213,1720445379469,-691.49,0.00054794,120]
[331515214,1720445379571,-500.0,0.00054794,120]
[331515215,1720445379671,-500.0,0.00054794,120]
[331515216,1720445379773,-500.0,0.00054794,120]
[331515217,1720445379873,-736.89,0.00054794,120]
[331515218,1720445379971,-467.22,0.00054794,120]
[331515219,1720445380069,-561.83,0.00054794,120]
[331515220,1720445380171,-500.0,0.00054794,120]
[331515221,1720445380271,-757.16,0.00054794,120]
[331515222,1720445380373,-519.91,0.00054794,120]
[331515223,1720445380478,-747.04,0.00054794,120]
[331515224,1720445380580,-613.38,0.00054794,30]
[331515225,1720445380680,-552.79,0.00054794,120]
[331515226,1720445380781,-591.58,0.00054794,120]
[331515227,1720445380879,-1172.19,0.00054794,120]
[331515228,1720445380989,-500.0,0.00054794,120]
[331515229,1720445381099,-1249.26,0.00054794,120]
[331515230,1720445381207,-557.8,0.00054794,120]
[331515231,1720445381314,-800.07,0.00054794,120]
[331515232,1720445381418,-807.07,0.00054794,120]
[331515233,1720445381512,-967.69,0.00054794,120]
[331515234,1720445381605,-1110.78,0.00054794,120]
[331515235,1720445381700,-593.07,0.00054794,120]
[331515236,1720445381793,-666.97,0.00054794,120]
[331515237,1720445381888,-663.11,0.00054794,120]
[331515238,1720445381983,-586.75,0.00054794,120]
[331515239,1720445382076,-500.81171929,0.00054794,120]
[331515240,1720445382173,-607.9295129,0.00054794,120]
[331515241,1720445382268,-594.57,0.00054794,120]
[331515242,1720445382366,-731.67,0.00054794,120]
[331515243,1720445382466,-727.03,0.00054794,120]
[331515244,1720445382563,-500.0,0.00054794,120]
[331515245,1720445382662,-556.36,0.00054794,120]
[331515246,1720445382755,-678.58,0.00054794,120]
[331515247,1720445382847,-507.09,0.00054794,120]
[331515248,1720445382940,-828.76,0.00054794,120]
[331515249,1720445383036,-500.0,0.00054794,120]
[331515250,1720445383137,-564.32,0.00054794,120]
[331515251,1720445383244,-500.0,0.00054794,120]
[331515252,1720445383354,-890.2,0.00054794,120]
[331515253,1720445383455,-795.04,0.00054794,120]
[331515254,1720445383558,-500.0,0.00054794,120]
[331515255,1720445383657,-788.58,0.00054794,120]
[331515256,1720445383759,-618.01,0.00054794,120]
[331515257,1720445383859,-551.18,0.00054794,120]
[331515258,1720445383964,-500.0,0.00054794,120]
[331515259,1720445384065,-720.18,0.00054794,120]
[331515260,1720445384170,-511.48,0.00054794,120]
[331515261,1720445384276,-500.0,0.00054794,120]
[331515262,1720445384381,-633.87,0.00054794,120]
[331515263,1720445384666,-885.43,0.00054794,120]
[331515264,1720445384766,-536.5,0.00054794,120]
[331515265,1720445384864,-739.48,0.00054794,120]
[331515266,1720445384965,-164.08325464,0.00054794,120]
[331515267,1720445385064,-556.22,0.00054794,120]
[331515268,1720445385166,-658.89,0.00054794,120]
[331515269,1720445385267,-500.0,0.00054794,120]
[331515270,1720445385370,-1110.08,0.00054794,120]
[331515271,1720445385475,-735.58,0.00054794,120]
[331515272,1720445385580,-508.6,0.00054794,120]
[331515273,1720445385686,-761.41,0.00054794,120]
[331515274,1720445385792,-757.98,0.00054794,120]
[331515275,1720445385897,-411.68009205,0.00054794,120]
[331515276,1720445386006,-744.56,0.00054794,120]
[331515277,1720445386115,-820.08,0.00054794,120]
[331515278,1720445386220,-571.86,0.00054794,120]
[331515279,1720445386327,-976.88,0.00054794,120]
[331515280,1720445386445,-795.49,0.00054794,120]
[331515281,1720445386564,-633.46,0.00054794,120]
[331515282,1720445386677,-1023.57,0.00054794,120]
[331515283,1720445386792,-732.16,0.00054794,120]
[331515284,1720445386897,-596.04,0.00054794,120]
[331515285,1720445387005,-584.19,0.00054794,120]
[331515286,1720445387107,-1250.0,0.00054794,120]
[331515287,1720445387216,-1319.76,0.00054794,120]
[331515288,1720445387323,-500.0,0.00054794,120]
[331515289,1720445387432,-777.23,0.00054794,120]
[331515290,1720445387535,-786.03,0.00054794,120]
[331515291,1720445387641,-993.73,0.00054794,120]
[331515292,1720445387748,-857.25,0.00054794,120]
[331515293,1720445387850,-631.99,0.00054794,120]
[331515294,1720445387953,-526.26,0.00054794,120]
[331515295,1720445388059,-834.16,0.00054794,120]
[331515296,1720445388172,-710.28,0.00054794,120]
[331515297,1720445388284,-500.0,0.00054794,120]
[331515298,1720445388394,-500.0,0.00054794,120]
[331515299,1720445388502,-907.14,0.00054794,120]
[331515300,1720445388607,-903.08,0.00054794,120]
[331515301,1720445388709,-1205.65,0.00054794,120]
[331515302,1720445388811,-575.42,0.00054794,120]
[331515303,1720445388914,-524.88,0.00054794,120]
[331515304,1720445389020,-560.0,0.00054794,120]
[331515305,1720445389120,-1266.13,0.00054794,120]
[331515306,1720445389221,-1038.93,0.00054794,120]
[331515307,1720445389325,-860.22,0.00054794,120]
[331515308,1720445389427,-617.44,0.00054794,120]
[331515309,1720445389528,-1023.2,0.00054794,120]
[331515310,1720445389626,-844.36,0.00054794,120]
[331515311,1720445389729,-981.65,0.00054794,120]
[331515312,1720445389831,-1228.92,0.00054794,120]
[331515313,1720445389931,-726.85,0.00054794,120]
[331515314,1720445390029,-1221.82,0.00054794,120]
[331515315,1720445390129,-908.94,0.00054794,120]
[331515316,1720445390233,-597.71,0.00054794,120]
[331515317,1720445390336,-500.0,0.00054794,120]
[331515318,1720445390436,-694.82,0.00054794,120]
[331515319,1720445390537,-1246.01,0.00054794,120]
[331515320,1720445390637,-1155.33,0.00054794,120]
[331515321,1720445390738,-1101.3,0.00054794,120]
[331515322,1720445390835,-689.02,0.00054794,120]
[331515323,1720445390932,-190.5526193,0.00054794,120]
[331515324,1720445391041,-889.1,0.00054794,120]
[331515325,1720445391157,-500.0,0.00054794,120]
[331515326,1720445391270,-656.56,0.00054794,120]
[331515327,1720445391381,-940.17,0.00054794,120]
[331515328,1720445391492,-1072.11,0.00054794,120]
[331515329,1720445391591,-1299.84,0.00054794,120]
[331515330,1720445391691,-869.62,0.00054794,120]
[331515331,1720445391793,-500.0,0.00054794,120]
[331515332,1720445391890,-929.28,0.00054794,120]
[331515333,1720445391988,-905.16,0.00054794,120]
[331515334,1720445392084,-500.0,0.00054794,120]
[331515335,1720445392185,-500.84,0.00054794,120]
[331515336,1720445392284,-716.75,0.00054794,120]
[331515337,1720445392384,-753.1,0.00054794,120]
[331515338,1720445392480,-1023.46,0.00054794,120]
[331515339,1720445392578,-810.25,0.00054794,120]
[331515340,1720445392681,-943.0,0.00054794,120]
[331515341,1720445392786,-629.86,0.00054794,120]
[331515342,1720445392887,-1153.51,0.00054794,120]
[331515343,1720445392991,-500.0,0.00054794,120]
[331515344,1720445393097,-742.91,0.00054794,120]
[331515345,1720445393212,-683.08,0.00054794,120]
[331515346,1720445393326,-869.05,0.00054794,120]
[331515347,1720445393436,-1252.26,0.00054794,120]
[331515348,1720445393546,-728.18,0.00054794,120]
[331515349,1720445393659,-1516.47,0.00054794,120]
[331515350,1720445393765,-964.36,0.00054794,120]
[331515351,1720445393868,-1626.66,0.00054794,120]
[331515352,1720445393972,-413.72,0.00054794,120]
[331515353,1720445394079,-602.34,0.00054794,120]
[331515354,1720445394189,-150.0,0.00054795,120]
[331515355,1720445394297,-20000.0,0.000548,120]
[331515356,1720445394405,-150.0,0.000548,40]
[331515357,1720445394515,-50000.0,0.00055,55]
[331515358,1720445394624,-5404369.12927716,0.00055,120]
[331515359,1720445394734,-1193.0,0.00055,120]
[331515360,1720445394845,-350133.6108548,0.00055,30]
[331515361,1720445394955,-500.0,0.00055,120]
[331515362,1720445395060,-1482.30971848,0.0005502,40]
[331515363,1720445395169,-1765.8060758,0.0005502,40]
[331515364,1720445395283,-2078.73,0.00055068,120]
[331515365,1720445395396,-754.88,0.00055068,120]
[331515366,1720445395509,-1684.15,0.00055068,120]
[331515367,1720445395836,-1733.81,0.00055068,120]
[331515368,1720445395949,-1653.08,0.00055068,120]
[331515369,1720445396060,-684.17,0.00055068,120]
[331515370,1720445396169,-626.33,0.00055068,120]
[331515371,1720445396279,-1183.41,0.00055068,120]
[331515372,1720445396396,-697.42,0.00055068,120]
[331515373,1720445396513,-1492.66,0.00055068,120]
[331515374,1720445396628,-893.27,0.00055068,120]
[331515375,1720445396743,-687.27,0.00055068,120]
[331515376,1720445396850,-500.0,0.00055068,120]
[331515377,1720445396960,-578.06,0.00055068,120]
[331515378,1720445397072,-500.0,0.00055068,120]
[331515379,1720445397183,-929.58,0.00055068,120]
[331515380,1720445397301,-628.14,0.00055068,120]
[331515381,1720445397408,-575.43,0.00055068,120]
[331515382,1720445397525,-606.58,0.00055068,120]
[331515383,1720445397631,-1428.1,0.00055068,120]
[331515384,1720445397740,-592.08,0.00055068,120]
[331515385,1720445397847,-599.01,0.00055068,120]
[331515386,1720445397952,-632.68422358,0.00055068,120]
[331515387,1720445398058,-527.34,0.00055068,120]
[331515388,1720445398169,-602.92137802,0.00055068,120]
[331515389,1720445398282,-462.39742211,0.00055068,120]
[331515390,1720445398389,-2303.83,0.00055068,120]
[331515391,1720445398497,-1030.01,0.00055068,120]
[331515392,1720445398601,-1129.3,0.00055068,120]
[331515393,1720445398713,-500.0,0.00055068,120]
[331515394,1720445398821,-537.46,0.00055068,120]
[331515395,1720445398929,-779.78,0.00055068,120]
[331515396,1720445399035,-745.19,0.00055068,120]
[331515397,1720445399143,-731.02,0.00055068,120]
[331515398,1720445399249,-656.72,0.00055068,120]
[331515399,1720445399356,-1102.07,0.00055068,120]
[331515400,1720445399463,-500.0,0.00055068,120]
[331515401,1720445399566,-500.0,0.00055068,120]
[331515402,1720445399666,-804.05,0.00055068,120]
[331515403,1720445399768,-968.64,0.00055068,120]
[331515404,1720445399870,-1082.19,0.00055068,120]
[331515405,1720445399971,-1935.41,0.00055068,120]
[331515406,1720445400073,-1570.5,0.00055068,120]
[331515407,1720445400186,-5085.83,0.00055068,120]
[331515408,1720445400308,-771.26,0.00055068,120]
[331515409,1720445400422,-813.82,0.00055068,120]
[331515410,1720445400530,-1256.69,0.00055068,120]
[331515411,1720445400637,-530.51,0.00055068,120]
[331515412,1720445400743,-200.37,0.00055068,120]
[331515413,1720445400847,-587.20379944,0.00055068,120]
[331515414,1720445400954,-915.13,0.00055068,120]
[331515415,1720445401057,-511.24,0.00055068,120]
[331515416,1720445401171,-2062.26,0.00055068,120]
[331515417,1720445401285,-2547.29,0.00055068,120]
[331515418,1720445401398,-722.73,0.00055068,120]
[331515419,1720445401497,-1773.39,0.00055068,120]
[331515420,1720445401600,-962.79,0.00055068,120]
[331515421,1720445401708,-1826.77,0.00055068,120]
[331515422,1720445401816,-1768.04,0.00055068,120]
[331515423,1720445401924,-1146.4421356,0.00055068,120]
[331515424,1720445413503,167.69,0.00010287,2]
[331515425,1720445416718,685.49,0.0001085,2]
[331515441,1720445431620,-250.0,0.00012686,2]
[331515442,1720445431629,-466.59388063,0.00012808,2]
[331515443,1720445432518,-33.40611937,0.00012808,2]
[331515445,1720445432528,-182.09,0.00012859,2]
[331515447,1720445432540,-685.49,0.00013114,2]
[331515449,1720445432550,-185.23,0.00013166,2]
[331515451,1720445432561,-844.94406036,0.00013166,2]
[331515454,1720445432575,-155.05593964,0.00013166,2]
[331515456,1720445432585,-255.73,0.00013699,2]
[331515458,1720445432595,-2432.5786,0.000138,2]
[331515460,1720445432605,-7490.58034963,0.000138,2]
[331515469,1720445432883,-574.34402685,0.000138,2]
[331515470,1720445432900,-581.06799919,0.000138,2]
[331515471,1720445432911,-390.12187737,0.000138,2]
[331515472,1720445432923,-70.04174696,0.000138,2]
[331515473,1720445432939,-2773.34662843,0.0001389,2]
[331515474,1720445432948,-164.37168205,0.000139,2]
[331515475,1720445432958,-5323.6127,0.000139,2]
[331515476,1720445432967,-34424.14965678,0.000139,2]
[331515477,1720445432977,-2205.10949248,0.000139,2]
[331515478,1720445432988,-1500.0,0.000139,2]
[331515479,1720445432998,-20635.96761975,0.000139,2]
[331515480,1720445433008,-506.02899663,0.000139,2]
[331515481,1720445433017,-7500.0,0.000139,2]
[331515482,1720445433026,-398.32848548,0.000139,2]
[331515483,1720445433036,-2500.0,0.000139,2]
[331515484,1720445433044,-363.3224,0.000139,2]
[331515485,1720445433054,-242.5499319,0.00013989,2]
[331515486,1720445433063,-242.5499319,0.00013989,2]
[331515487,1720445433072,-242.5499319,0.00013989,2]
[331515488,1720445433082,-4050.945,0.0001399,2]
[331515489,1720445433091,-188.23245816,0.0001399,2]
[331515490,1720445433100,-34.78809601,0.00013995,2]
[331515494,1720445437530,-1145.41120471,0.00013995,2]
[331515495,1720445437540,-1759.77004143,0.00013999,5]
[331515496,1720445437550,-647.02185779,0.00013999,2]
[331515497,1720445437559,-833.0,0.00014,2]
[331515498,1720445437569,-541576.39307131,0.00014,2]
[331515499,1720445437582,-712.3,0.00014,2]
[331515500,1720445437653,-3561.78175603,0.00014,2]
[331515501,1720445437665,-450.95372915,0.00014,2]
[331515502,1720445437744,-2348.40046312,0.00014,2]
[331515503,1720445437765,-219026.56928015,0.00014,2]
[331515504,1720445437778,-41583.14066831,0.00014,2]
[331515505,1720445437787,-1000.0,0.00014,2]
[331515506,1720445437797,-1000.0,0.00014,2]
[331515507,1720445437807,-1000.0,0.00014,2]
[331515508,1720445437817,-1000.0,0.00014,2]
[331515509,1720445437826,-1000.0,0.00014,2]
[331515510,1720445437836,-1000.0,0.00014,2]
[331515511,1720445437845,-1000.0,0.00014,2]
[331515512,1720445437855,-1000.0,0.00014,2]
[331515513,1720445437865,-1000.0,0.00014,2]
[331515515,1720445437874,-1000.0,0.00014,2]
[331515517,1720445437884,-1000.0,0.00014,2]
[331515519,1720445437893,-825.58433486,0.00014,2]
[331515521,1720445437903,-250.0,0.00014,2]
[331515523,1720445437912,-250.0,0.00014,2]
[331515525,1720445437921,-250.0,0.00014,2]
[331515526,1720445437930,-250.0,0.00014,2]
[331515529,1720445437942,-250.0,0.00014,2]
[331515530,1720445437951,-250.0,0.00014,2]
[331515532,1720445437961,-250.0,0.00014,2]
[331515534,1720445437970,-250.0,0.00014,2]
[331515536,1720445437979,-250.0,0.00014,2]
[331515538,1720445437989,-250.0,0.00014,2]
[331515541,1720445437999,-250.0,0.00014,2]
[331515542,1720445438009,-250.0,0.00014,2]
[331515545,1720445438018,-250.0,0.00014,2]
[331515546,1720445438028,-250.0,0.00014,2]
[331515548,1720445438038,-250.0,0.00014,2]
[331515550,1720445438047,-430.4,0.00014,2]